bitfinex-derivatives/quotes_BTCF0:USTF0_20250918
["timestamp","ask_amount","ask_price","bid_price","bid_amount"]
[1758223997191,0.80249617,117440.0,117430.0,0.63]
[1758223997592,1.08426166,117440.0,117430.0,0.52]
[1758223997885,1.50811735,117440.0,117430.0,0.52]
[1758223998089,1.51011735,117440.0,117430.0,0.52]
[1758223998890,1.51111735,117440.0,117430.0,0.52]
[1758224000785,1.77481735,117440.0,117430.0,0.52]
[1758224003689,2.55369735,117440.0,117430.0,0.52]
[1758224004195,0.2253047,117430.0,117420.0,0.0001]
[1758224004492,1.07140614,117430.0,117420.0,0.57]
[1758224004694,1.08507393,117430.0,117420.0,0.57]
[1758224005892,2.58607393,117430.0,117420.0,0.57]
[1758224006693,2.58807393,117430.0,117420.0,0.57]
[1758224007891,4.38167393,117430.0,117420.0,0.57]
[1758224008388,4.80472465,117430.0,117420.0,0.57]
[1758224008594,4.38167393,117430.0,117420.0,0.57]
[1758224008781,5.16015393,117430.0,117420.0,0.57]
[1758224011095,5.15999393,117430.0,117420.0,0.57]
[1758224011395,5.58304465,117430.0,117420.0,0.57]
[1758224011594,0.2233319,117420.0,117410.0,0.0001]
[1758224011799,0.2233391,117410.0,117400.0,0.09731889]
[1758224011997,1.84772054,117410.0,117400.0,0.93721889]
[1758224012288,2.12508833,117410.0,117400.0,0.93721889]
[1758224012696,1.70203761,117410.0,117400.0,0.93721889]
[1758224013297,2.12708833,117410.0,117400.0,0.93721889]
[1758224013897,1.34880833,117410.0,117400.0,0.93721889]
[1758224014300,2.12688833,117410.0,117400.0,0.93721889]
[1758224014601,1.70379761,117410.0,117400.0,0.93721889]
[1758224014795,1.70479761,117410.0,117400.0,0.93721889]
[1758224015600,1.70471761,117410.0,117400.0,0.93721889]
[1758224016194,0.92675761,117410.0,117400.0,1.36026961]
[1758224016399,1.70467761,117410.0,117400.0,0.93721889]
[1758224016899,0.92675761,117410.0,117400.0,0.93721889]
[1758224017292,1.70459761,117410.0,117400.0,0.93721889]
[1758224017901,0.92675761,117410.0,117400.0,0.93721889]
[1758224018101,1.70455761,117410.0,117400.0,0.93721889]
[1758224019397,0.50370689,117410.0,117400.0,0.93721889]
[1758224019596,1.70439761,117410.0,117400.0,0.93721889]
[1758224019902,0.92675761,117410.0,117400.0,0.93721889]
[1758224020097,1.70431761,117410.0,117400.0,0.93721889]
[1758224020296,0.92675761,117410.0,117400.0,0.93721889]
[1758224020501,1.70431761,117410.0,117400.0,0.93721889]
[1758224022403,2.12736833,117410.0,117400.0,0.93721889]
[1758224026201,1.86366833,117410.0,117400.0,0.84]
[1758224026399,1.84982695,117410.0,117400.0,0.56]
[1758224027899,1.84982695,117410.0,117400.0,0.57]
[1758224029001,1.84982695,117410.0,117400.0,0.56]
[1758224029895,2.27287767,117410.0,117400.0,0.56]
[1758224030112,1.84982695,117410.0,117400.0,0.56]
[1758224031306,1.07226695,117410.0,117400.0,0.56]
[1758224031499,1.84906695,117410.0,117400.0,0.56]
[1758224034008,1.07226695,117410.0,117400.0,0.56]
[1758224034412,1.84874695,117410.0,117400.0,0.56]
[1758224035303,1.07226695,117410.0,117400.0,0.56]
[1758224035610,1.84870695,117410.0,117400.0,0.56]
[1758224035806,1.07226695,117410.0,117400.0,0.56]
[1758224036015,1.84866695,117410.0,117400.0,0.56]
[1758224036710,2.27171767,117410.0,117400.0,0.56]
[1758224037610,1.49531767,117410.0,117400.0,0.56]
[1758224037811,0.1368064,117400.0,117390.0,0.0001]
[1758224038015,0.64416712,117400.0,117390.0,0.75]
[1758224038309,0.65783491,117400.0,117390.0,0.75]
[1758224038711,1.85700563,117400.0,117390.0,0.83331]
[1758224038910,1.08088563,117400.0,117390.0,0.83331]
[1758224039108,1.01290419,117400.0,117390.0,0.83331]
[1758224039414,2.28205635,117400.0,117390.0,0.75]
[1758224039811,2.28305635,117400.0,117390.0,0.58]
[1758224040611,1.50693635,117400.0,117390.0,0.58]
[1758224040812,2.28289635,117400.0,117390.0,0.58]
[1758224041615,2.28293635,117400.0,117390.0,0.58]
[1758224042719,1.50693635,117400.0,117390.0,0.58]
[1758224042917,2.28281635,117400.0,117390.0,0.58]
[1758224043818,1.50693635,117400.0,117390.0,0.58]
[1758224044018,2.28293635,117400.0,117390.0,0.58]
[1758224048115,1.50693635,117400.0,117390.0,0.58]
[1758224048322,2.28269635,117400.0,117390.0,0.58]
[1758224048622,0.2297458,117390.0,117380.0,0.0001]
[1758224048816,0.229753,117380.0,117370.0,0.1685077]
[1758224049022,3.239826,117380.0,117370.0,1.0184077]
[1758224049218,3.66287672,117380.0,117370.0,0.93325]
[1758224049412,4.36329523,117380.0,117370.0,0.93325]
[1758224049612,4.36329523,117380.0,117370.0,0.85004]
[1758224050519,4.36629523,117380.0,117370.0,0.85004]
[1758224050719,4.10259523,117380.0,117370.0,0.85004]
[1758224050920,4.10259523,117380.0,117370.0,0.56004]
[1758224051222,3.67954451,117380.0,117370.0,0.64325]
[1758224051617,4.11111879,117380.0,117370.0,0.64325]
[1758224051823,3.68806807,117380.0,117370.0,0.64325]
[1758224052023,3.68806807,117380.0,117370.0,0.63325]
[1758224052324,3.68806807,117380.0,117370.0,0.74325]
[1758224052623,4.11111879,117380.0,117370.0,0.74325]
[1758224052820,3.67958451,117380.0,117370.0,0.74325]
[1758224053124,2.90390451,117380.0,117370.0,0.66004]
[1758224053326,3.67958451,117380.0,117370.0,0.66004]
[1758224053725,3.75561602,117380.0,117370.0,0.66004]
[1758224053926,2.97993602,117380.0,117370.0,0.66004]
[1758224054126,3.75561602,117380.0,117370.0,0.66004]
[1758224057522,3.75561602,117380.0,117370.0,0.87004]
[1758224057820,3.47411414,117380.0,117370.0,0.87004]
[1758224059219,3.47415414,117380.0,117370.0,0.87004]
[1758224059416,3.47411414,117380.0,117370.0,0.95325]
[1758224059828,2.69843414,117380.0,117370.0,0.95325]
[1758224060023,2.1250927,117380.0,117370.0,0.63325]
[1758224060220,2.83352307,117380.0,117370.0,1.19325]
[1758224060523,3.11582285,117380.0,117370.0,1.2784101]
[1758224060730,2.83352307,117380.0,117370.0,1.2784101]
[1758224060931,3.11582285,117380.0,117370.0,1.2784101]
[1758224061123,2.34010285,117380.0,117370.0,1.19325]
[1758224061318,3.11582285,117380.0,117370.0,1.2784093]
[1758224061528,2.83352307,117380.0,117370.0,1.2784093]
[1758224061918,3.11582285,117380.0,117370.0,1.2784093]
[1758224062121,2.73470228,117380.0,117370.0,1.56070908]
[1758224062325,2.81985308,117380.0,117370.0,1.56070908]
[1758224062922,3.10215286,117380.0,117370.0,1.19325]
[1758224063122,3.10215286,117380.0,117370.0,1.56070768]
[1758224063623,1.95898228,117380.0,117370.0,1.60223768]
[1758224063928,2.57284,117380.0,117370.0,1.88453746]
[1758224064128,2.57284,117380.0,117370.0,1.60223768]
[1758224065030,2.57284,117380.0,117370.0,1.3199379]
[1758224065230,2.57284,117380.0,117370.0,1.60223768]
[1758224068029,2.57284,117380.0,117370.0,1.88453746]
[1758224068626,2.57284,117380.0,117370.0,1.60223768]
[1758224071134,2.55429236,117380.0,117370.0,1.60223768]
[1758224074535,2.55429236,117380.0,117370.0,1.62189338]
[1758224076439,2.55429236,117380.0,117370.0,1.3395936]
[1758224076644,2.55429236,117380.0,117370.0,1.62189338]
[1758224077751,2.55429236,117380.0,117370.0,1.60223768]
[1758224077952,2.55429236,117380.0,117370.0,1.9044837]
[1758224078144,2.55429236,117380.0,117370.0,1.62218392]
[1758224079244,2.55429236,117380.0,117370.0,1.37218392]
[1758224081151,2.55429236,117380.0,117370.0,1.6544837]
[1758224083456,2.55429236,117380.0,117370.0,1.37218392]
[1758224088361,2.60764236,117380.0,117370.0,1.33065392]
[1758224088859,2.60764236,117380.0,117370.0,1.04835414]
[1758224089163,2.60764236,117380.0,117370.0,1.33065392]
[1758224089659,3.06454304,117380.0,117370.0,0.96319624]
[1758224089861,3.61051061,117380.0,117370.0,0.96319624]
[1758224090161,3.61051061,117380.0,117370.0,0.86004]
[1758224090564,3.61051061,117380.0,117370.0,0.55004]
[1758224091056,3.89281039,117380.0,117370.0,0.55004]
[1758224091664,3.61051061,117380.0,117370.0,0.55004]
[1758224092066,3.89281039,117380.0,117370.0,0.55004]
[1758224093567,3.95961641,117380.0,117370.0,0.55004]
[1758224094266,3.95961641,117380.0,117370.0,0.17004]
[1758224095169,3.95961641,117380.0,117370.0,4e-05]
[1758224096468,3.95861641,117380.0,117370.0,4e-05]
[1758224096667,3.96461641,117380.0,117370.0,4e-05]
[1758224097970,3.96461641,117380.0,117370.0,0.01004]
[1758224100272,0.2212582,117370.0,117360.0,0.0001]
[1758224100573,0.2212655,117360.0,117350.0,0.0001]
[1758224100872,1.56154506,117360.0,117350.0,0.77]
[1758224101173,1.85751263,117360.0,117350.0,0.77]
[1758224101367,2.10751263,117360.0,117350.0,0.77]
[1758224101670,1.82521285,117360.0,117350.0,0.77]
[1758224101871,1.82521285,117360.0,117350.0,0.6]
[1758224102371,1.82721285,117360.0,117350.0,0.6]
[1758224102572,1.82921285,117360.0,117350.0,0.6]
[1758224102964,1.05353285,117360.0,117350.0,0.6]
[1758224103164,1.82921285,117360.0,117350.0,0.6]
[1758224103468,0.2212729,117350.0,117340.0,0.0001]
[1758224103665,1.27929268,117350.0,117340.0,0.83]
[1758224103866,1.29296047,117350.0,117340.0,0.83]
[1758224104572,1.29396047,117350.0,117340.0,0.83]
[1758224105273,1.57626025,117350.0,117340.0,0.83]
[1758224105469,1.59354087,117350.0,117340.0,0.83]
[1758224105675,2.09457308,117350.0,117340.0,0.83]
[1758224105877,0.2212801,117340.0,117330.0,0.0001]
[1758224106173,0.2212874,117330.0,117320.0,0.08032]
[1758224106375,3.07386718,117330.0,117320.0,0.89022]
[1758224107370,3.14362838,117330.0,117320.0,1.14022]
[1758224107578,3.14366838,117330.0,117320.0,1.14022]
[1758224108174,3.14466838,117330.0,117320.0,1.14022]
[1758224108674,2.36890838,117330.0,117320.0,1.14022]
[1758224108870,3.14466838,117330.0,117320.0,1.14022]
[1758224110280,3.14470838,117330.0,117320.0,1.14022]
[1758224114276,3.14470838,117330.0,117320.0,1.42251978]
[1758224114474,3.14470838,117330.0,117320.0,1.14022]
[1758224114776,3.14470838,117330.0,117320.0,0.51]
[1758224114777,3.42700816,117330.0,117320.0,0.51]
[1758224115669,2.8624086,117330.0,117320.0,0.51]
[1758224115869,2.65120816,117330.0,117320.0,0.51]
[1758224116065,3.42704816,117330.0,117320.0,0.51]
[1758224116270,2.8624486,117330.0,117320.0,0.59022]
[1758224116570,3.42704816,117330.0,117320.0,0.51]
[1758224116880,3.14474838,117330.0,117320.0,0.59022]
[1758224117180,2.36890838,117330.0,117320.0,0.59022]
[1758224117371,3.14690838,117330.0,117320.0,0.59022]
[1758224117776,3.7121852,117330.0,117320.0,0.59022]
[1758224118477,2.8645286,117330.0,117320.0,1.5229912]
[1758224118780,3.2883569,117330.0,117320.0,1.4092029]
[1758224118982,3.2883569,117330.0,117320.0,1.8329912]
[1758224119175,3.2883569,117330.0,117320.0,1.4092029]
[1758224119682,3.2883569,117330.0,117320.0,0.59022]
[1758224119883,3.2883569,117330.0,117320.0,1.3440083]
[1758224120586,3.2883569,117330.0,117320.0,0.59022]
[1758224120785,3.2883569,117330.0,117320.0,1.3040083]
[1758224121879,3.2883569,117330.0,117320.0,0.59022]
[1758224122080,3.2883569,117330.0,117320.0,1.0140083]
[1758224122283,2.8645686,117330.0,117320.0,1.0340083]
[1758224122582,3.2883569,117330.0,117320.0,1.0340083]
[1758224123784,3.2883569,117330.0,117320.0,1.2240083]
[1758224125078,3.2883569,117330.0,117320.0,0.80022]
[1758224125587,3.2883569,117330.0,117320.0,1.2240083]
[1758224126382,3.2883569,117330.0,117320.0,0.80022]
[1758224126688,3.2883569,117330.0,117320.0,1.2240083]
[1758224126885,4.41382037,117330.0,117320.0,0.72]
[1758224127188,3.99055207,117330.0,117320.0,0.51]
[1758224127984,0.2212949,117320.0,117310.0,0.0001]
[1758224128182,1.09676729,117320.0,117310.0,0.62]
[1758224129088,1.09676729,117320.0,117310.0,0.57]
[1758224129290,1.87516729,117320.0,117310.0,0.57]
[1758224129586,1.87816729,117320.0,117310.0,0.57]
[1758224129785,0.25219069,117320.0,117310.0,0.65022]
[1758224129986,1.87808729,117320.0,117310.0,0.65022]
[1758224131294,1.87808729,117320.0,117310.0,0.57]
[1758224132493,1.87708729,117320.0,117310.0,0.57]
[1758224132692,1.87908729,117320.0,117310.0,0.57]
[1758224133886,1.88776093,117320.0,117310.0,0.57]
[1758224137582,1.10944093,117320.0,117310.0,0.57]
[1758224137798,1.10944093,117320.0,117310.0,0.65679]
[1758224137997,1.88832093,117320.0,117310.0,0.65679]
[1758224139300,0.26186433,117320.0,117310.0,0.65679]
[1758224139596,1.88836093,117320.0,117310.0,0.65679]
[1758224139799,1.88836093,117320.0,117310.0,0.57]
[1758224140593,0.26186433,117320.0,117310.0,0.65679]
[1758224140899,1.10076729,117320.0,117310.0,1.0805783]
[1758224141589,1.87960729,117320.0,117310.0,1.0805783]
[1758224141790,1.87960729,117320.0,117310.0,0.65679]
[1758224141992,1.87960729,117320.0,117310.0,1.0805783]
[1758224142186,1.8517115,117320.0,117310.0,0.65679]
[1758224142398,1.8517115,117320.0,117310.0,1.0805783]
[1758224142785,1.87947008,117320.0,117310.0,0.65679]
[1758224143095,0.2252949,117320.0,117310.0,1.6705783]
[1758224143296,1.4277632,117320.0,117310.0,1.6705783]
[1758224143690,0.2252949,117320.0,117310.0,1.6705783]
[1758224143891,1.0040549,117320.0,117310.0,1.6705783]
[1758224144094,1.4278432,117320.0,117310.0,1.6705783]
[1758224144297,1.4278432,117320.0,117310.0,1.3305783]
[1758224144504,1.4278432,117320.0,117310.0,1.5605783]
[1758224144698,1.0040549,117320.0,117310.0,1.5605783]
[1758224144999,1.4278432,117320.0,117310.0,1.5605783]
[1758224147196,1.0040549,117320.0,117310.0,1.13679]
[1758224147500,1.8516315,117320.0,117310.0,0.90679]
[1758224147692,1.8516315,117320.0,117310.0,1.2437883]
[1758224148091,1.0040549,117320.0,117310.0,1.2637883]
[1758224148299,1.8516315,117320.0,117310.0,1.2637883]
[1758224149100,1.0040549,117320.0,117310.0,1.4537883]
[1758224149396,1.8516315,117320.0,117310.0,1.03]
[1758224149703,1.8516315,117320.0,117310.0,1.4537883]
[1758224150195,1.4278432,117320.0,117310.0,1.4537883]
[1758224150800,1.4281232,117320.0,117310.0,1.4537883]
[1758224151700,0.2252949,117320.0,117310.0,1.4537883]
[1758224152001,1.4281232,117320.0,117310.0,1.2037883]
[1758224153089,1.0043349,117320.0,117310.0,1.2037883]
[1758224153291,0.86717,117320.0,117310.0,1.5716501]
[1758224154294,0.08837,117320.0,117310.0,1.5716501]
[1758224154501,1.3384183,117320.0,117310.0,1.5389901]
[1758224155192,1.4236128,117320.0,117310.0,1.5389901]
[1758224155396,1.4236128,117320.0,117310.0,1.1152018]
[1758224155597,1.4236128,117320.0,117310.0,1.5389901]
[1758224156106,1.4236128,117320.0,117310.0,1.1152018]
[1758224156292,0.9998245,117320.0,117310.0,1.1152018]
[1758224156497,1.4236128,117320.0,117310.0,1.5389901]
[1758224156903,1.4236128,117320.0,117310.0,1.03]
[1758224157201,1.4236128,117320.0,117310.0,1.4537883]
[1758224158207,1.4236128,117320.0,117310.0,1.52364662]
[1758224158502,1.4236128,117320.0,117310.0,1.09985832]
[1758224158710,1.4236128,117320.0,117310.0,1.52364662]
[1758224160008,1.4236128,117320.0,117310.0,1.60884842]
[1758224161006,1.8474011,117320.0,117310.0,1.09985832]
[1758224161201,1.8474011,117320.0,117310.0,0.8637]
[1758224161800,1.2498245,117320.0,117310.0,0.8637]
[1758224162004,2.0974011,117320.0,117310.0,0.8637]
[1758224162399,1.2498245,117320.0,117310.0,0.8637]
[1758224162706,2.0974011,117320.0,117310.0,0.8637]
[1758224163009,0.4710245,117320.0,117310.0,0.8637]
[1758224163198,0.4710245,117320.0,117310.0,1.2874883]
[1758224163199,2.1050811,117320.0,117310.0,1.2874883]
[1758224163400,0.4710245,117320.0,117310.0,1.2874883]
[1758224163596,2.1052411,117320.0,117310.0,0.8637]
[1758224163797,1.2576645,117320.0,117310.0,1.2874883]
[1758224164005,2.1057211,117320.0,117310.0,1.2874883]
[1758224164309,2.1057211,117320.0,117310.0,0.8637]
[1758224164601,2.1057211,117320.0,117310.0,1.2874883]
[1758224165009,2.1057211,117320.0,117310.0,0.8637]
[1758224165208,2.1057211,117320.0,117310.0,1.2874883]
[1758224166506,1.3186011,117320.0,117310.0,1.2874883]
[1758224166907,2.1058811,117320.0,117310.0,1.2874883]
[1758224168508,1.2583045,117320.0,117310.0,1.2874883]
[1758224168706,2.1058811,117320.0,117310.0,1.2874883]
[1758224168911,2.1056811,117320.0,117310.0,0.8637]
[1758224169113,2.1056811,117320.0,117310.0,1.2874883]
[1758224169602,0.2210245,117320.0,117310.0,1.2874883]
[1758224169801,1.4319328,117320.0,117310.0,1.2874883]
[1758224170009,0.2210245,117320.0,117310.0,1.2874883]
[1758224170213,1.0080245,117320.0,117310.0,1.2874883]
[1758224170414,1.4318128,117320.0,117310.0,1.2874883]
[1758224170614,1.0080245,117320.0,117310.0,1.2874883]
[1758224170816,1.4318128,117320.0,117310.0,1.2874883]
[1758224171113,1.4318128,117320.0,117310.0,0.93316997]
[1758224171315,1.4318128,117320.0,117310.0,1.35695827]
[1758224171710,1.0080245,117320.0,117310.0,0.93316997]
[1758224171914,1.4318128,117320.0,117310.0,1.35695827]
[1758224173416,1.0080245,117320.0,117310.0,1.35695827]
[1758224173909,1.8556011,117320.0,117310.0,0.93316997]
[1758224174307,1.4318128,117320.0,117310.0,1.35695827]
[1758224174601,1.8556011,117320.0,117310.0,1.35695827]
[1758224174800,1.0080245,117320.0,117310.0,1.35695827]
[1758224175012,1.4318128,117320.0,117310.0,1.35695827]
[1758224175515,1.0080245,117320.0,117310.0,1.35695827]
[1758224175723,1.4318128,117320.0,117310.0,1.35695827]
[1758224176018,1.0080245,117320.0,117310.0,1.35695827]
[1758224176219,1.4318128,117320.0,117310.0,0.93316997]
[1758224176516,1.4318128,117320.0,117310.0,1.35695827]
[1758224176911,1.8556011,117320.0,117310.0,1.35695827]
[1758224177817,1.84174957,117320.0,117310.0,1.35695827]
[1758224178316,0.99417297,117320.0,117310.0,1.35695827]
[1758224178511,1.84174957,117320.0,117310.0,1.35695827]
[1758224179415,1.41796127,117320.0,117310.0,1.35695827]
[1758224179819,1.27668195,117320.0,117310.0,1.21567895]
[1758224181720,0.99501297,117320.0,117310.0,1.21567895]
[1758224182018,1.27752195,117320.0,117310.0,1.21567895]
[1758224182319,1.27752195,117320.0,117310.0,0.93316997]
[1758224182616,1.27752195,117320.0,117310.0,1.21567895]
[1758224183718,0.99501297,117320.0,117310.0,1.21567895]
[1758224184109,0.12197847,117320.0,117310.0,1.21567895]
[1758224184614,1.19208745,117320.0,117310.0,1.21567895]
[1758224184831,1.27728165,117320.0,117310.0,1.21567895]
[1758224185024,0.48968165,117320.0,117310.0,1.21567895]
[1758224185229,1.27732165,117320.0,117310.0,1.21567895]
[1758224185431,0.48968165,117320.0,117310.0,1.21567895]
[1758224185632,1.27712165,117320.0,117310.0,1.21567895]
[1758224186028,1.27712165,117320.0,117310.0,1.30088115]
[1758224186635,1.27712165,117320.0,117310.0,1.21567895]
[1758224187125,0.99461267,117320.0,117310.0,0.93316997]
[1758224187326,1.27712165,117320.0,117310.0,1.21567895]
[1758224187620,0.99433267,117320.0,117310.0,1.21567895]
[1758224188231,0.20717267,117320.0,117310.0,1.21567895]
[1758224188730,0.99425267,117320.0,117310.0,1.21567895]
[1758224189029,0.20717267,117320.0,117310.0,0.93316997]
[1758224189231,0.99425267,117320.0,117310.0,1.21567895]
[1758224189625,0.20717267,117320.0,117310.0,1.30088115]
[1758224189834,0.8760349,117320.0,117310.0,1.32321115]
[1758224190032,0.8760349,117320.0,117310.0,1.85572013]
[1758224190033,0.79084,117320.0,117310.0,1.85572013]
[1758224190927,0.79084,117320.0,117310.0,1.57321115]
[1758224194035,0.79084,117320.0,117310.0,1.29070217]
[1758224194239,0.79084,117320.0,117310.0,1.57321115]
[1758224195441,0.79084,117320.0,117310.0,1.29070217]
[1758224195640,0.79084,117320.0,117310.0,1.57321115]
[1758224196241,0.8760349,117320.0,117310.0,1.57321115]
[1758224196444,1.28781388,117320.0,117310.0,0.93316997]
[1758224197942,1.28781388,117320.0,117310.0,1.21567895]
[1758224198946,0.2184649,117320.0,117310.0,1.21567895]
[1758224199140,0.2184649,117320.0,117310.0,1.30088115]
[1758224199341,1.28809388,117320.0,117310.0,1.30088115]
[1758224199643,1.2693649,117320.0,117310.0,1.30088115]
[1758224199831,1.2693649,117320.0,117310.0,1.01837217]
[1758224200034,0.4821649,117320.0,117310.0,1.30088115]
[1758224200235,1.2692849,117320.0,117310.0,1.30088115]
[1758224200740,0.2184649,117320.0,117310.0,1.30088115]
[1758224200940,1.0055849,117320.0,117310.0,1.30088115]
[1758224201144,1.0055849,117320.0,117310.0,1.21567895]
[1758224201347,1.28809388,117320.0,117310.0,1.21567895]
[1758224201546,1.28809388,117320.0,117310.0,0.93316997]
[1758224201738,1.28809388,117320.0,117310.0,1.21567895]
[1758224201941,1.28809388,117320.0,117310.0,0.93316997]
[1758224202746,1.28769388,117320.0,117310.0,1.21567895]
[1758224202946,0.50097388,117320.0,117310.0,1.21567895]
[1758224203244,1.28757388,117320.0,117310.0,1.21567895]
[1758224203444,0.50097388,117320.0,117310.0,1.21567895]
[1758224203647,1.28749388,117320.0,117310.0,1.21567895]
[1758224203940,0.50097388,117320.0,117310.0,1.21567895]
[1758224204148,1.28745388,117320.0,117310.0,1.21567895]
[1758224204548,1.81996286,117320.0,117310.0,0.78]
[1758224205247,1.03348286,117320.0,117310.0,0.78]
[1758224205448,1.82008286,117320.0,117310.0,0.78]
[1758224205643,1.03348286,117320.0,117310.0,0.86073]
[1758224205844,1.82000286,117320.0,117310.0,0.86073]
[1758224206047,1.03348286,117320.0,117310.0,0.86073]
[1758224206548,1.81992286,117320.0,117310.0,0.86073]
[1758224207253,1.2549049,117320.0,117310.0,0.86073]
[1758224207752,1.81992286,117320.0,117310.0,0.86073]
[1758224207946,0.4684649,117320.0,117310.0,0.86073]
[1758224208146,1.81988286,117320.0,117310.0,0.86073]
[1758224209451,1.03348286,117320.0,117310.0,0.86073]
[1758224209653,1.81988286,117320.0,117310.0,0.86073]
[1758224209853,1.2548649,117320.0,117310.0,0.86073]
[1758224210041,1.81988286,117320.0,117310.0,0.86073]
[1758224210753,1.03348286,117320.0,117310.0,0.86073]
[1758224211251,1.81968286,117320.0,117310.0,0.86073]
[1758224212553,1.81964286,117320.0,117310.0,0.86073]
[1758224212756,1.81944286,117320.0,117310.0,0.86073]
[1758224213450,1.03348286,117320.0,117310.0,0.86073]
[1758224213656,0.2184649,117320.0,117310.0,0.86073]
[1758224213855,1.28677388,117320.0,117310.0,1.14323898]
[1758224214558,0.2184649,117320.0,117310.0,1.14323898]
[1758224214756,1.28669388,117320.0,117310.0,1.14323898]
[1758224215057,0.50097388,117320.0,117310.0,1.14323898]
[1758224215253,1.28661388,117320.0,117310.0,1.14323898]
[1758224217057,1.0041049,117320.0,117310.0,1.14323898]
[1758224217257,1.28661388,117320.0,117310.0,1.14323898]
[1758224217456,1.28661388,117320.0,117310.0,1.21082094]
[1758224219963,1.0041049,117320.0,117310.0,1.21082094]
[1758224220157,1.28661388,117320.0,117310.0,0.92831196]
[1758224220359,1.28661388,117320.0,117310.0,1.21082094]
[1758224222354,1.28661388,117320.0,117310.0,0.92831196]
[1758224222558,1.56912286,117320.0,117310.0,0.92831196]
[1758224224467,1.0041049,117320.0,117310.0,0.92831196]
[1758224224657,1.56912286,117320.0,117310.0,0.92831196]
[1758224227366,1.0041049,117320.0,117310.0,0.92831196]
[1758224227564,1.56912286,117320.0,117310.0,0.92831196]
[1758224232361,1.0041049,117320.0,117310.0,0.92831196]
[1758224232566,1.56912286,117320.0,117310.0,0.92831196]
[1758224239175,1.56996286,117320.0,117310.0,0.92831196]
[1758224239771,1.85260058,117320.0,117310.0,0.92831196]
[1758224239975,1.06612058,117320.0,117310.0,0.92831196]
[1758224240166,1.85264058,117320.0,117310.0,0.92831196]
[1758224240573,1.06612058,117320.0,117310.0,0.92831196]
[1758224240875,1.85248058,117320.0,117310.0,0.92831196]
[1758224241965,1.06612058,117320.0,117310.0,0.92831196]
[1758224242165,1.85236058,117320.0,117310.0,0.92831196]
[1758224244876,1.0047049,117320.0,117310.0,0.92831196]
[1758224245081,1.85236058,117320.0,117310.0,0.92831196]
[1758224247373,1.85236058,117320.0,117310.0,0.86073]
[1758224247674,1.06612058,117320.0,117310.0,0.86073]
[1758224247874,1.85184058,117320.0,117310.0,0.65073]
[1758224248268,1.06612058,117320.0,117310.0,0.69073]
[1758224248470,1.85180058,117320.0,117310.0,0.69073]
[1758224248769,1.06612058,117320.0,117310.0,0.69073]
[1758224248970,0.2184649,117320.0,117310.0,0.69073]
[1758224249170,1.85172058,117320.0,117310.0,0.87073]
[1758224251076,3.64700058,117320.0,117310.0,0.94016576]
[1758224253081,4.07082842,117320.0,117310.0,0.63943576]
[1758224253280,0.0852025,117310.0,117300.0,0.0001]
[1758224253474,0.0852171,117290.0,117280.0,0.0001]
[1758224253683,0.2127943,117280.0,117270.0,0.06684141]
[1758224253992,0.2128016,117270.0,117260.0,0.07535]
[1758224254286,3.64205728,117270.0,117260.0,0.92004]
[1758224254495,4.08539883,117270.0,117260.0,0.19004]
[1758224254687,3.66153099,117270.0,117260.0,0.19004]
[1758224254993,0.2063961,117250.0,117240.0,0.0001]
[1758224255287,0.63022394,117250.0,117240.0,0.77]
[1758224255493,1.07411977,117250.0,117240.0,0.5]
[1758224255691,1.86027977,117250.0,117240.0,0.5]
[1758224255887,1.73912977,117250.0,117240.0,0.5]
[1758224256396,1.74112977,117250.0,117240.0,0.5]
[1758224257292,0.10731409,117250.0,117240.0,0.5]
[1758224257499,1.74088977,117250.0,117240.0,0.5]
[1758224257699,0.10731409,117250.0,117240.0,0.478]
[1758224257998,1.75024977,117250.0,117240.0,0.478]
[1758224258193,1.75024977,117250.0,117240.0,0.488]
[1758224258591,1.75024977,117250.0,117240.0,0.478]
[1758224258795,0.90251409,117250.0,117240.0,0.478]
[1758224259094,1.75016977,117250.0,117240.0,0.478]
[1758224259395,0.95496977,117250.0,117240.0,0.478]
[1758224259597,1.75024977,117250.0,117240.0,0.518]
[1758224260193,1.75024977,117250.0,117240.0,0.668]
[1758224263703,0.95496977,117250.0,117240.0,0.668]
[1758224263906,1.74980977,117250.0,117240.0,0.668]
[1758224266807,0.10731409,117250.0,117240.0,1.09182784]
[1758224267003,0.53114193,117250.0,117240.0,1.09182784]
[1758224267207,1.32558193,117250.0,117240.0,1.09182784]
[1758224268906,1.32558193,117250.0,117240.0,1.17708124]
[1758224269408,1.32558193,117250.0,117240.0,0.7532534]
[1758224269599,1.32558193,117250.0,117240.0,1.17708124]
[1758224270607,1.32502193,117250.0,117240.0,1.17708124]
[1758224270908,1.23977583,117250.0,117240.0,1.42708124]
[1758224271208,1.32502193,117250.0,117240.0,1.42708124]
[1758224271404,0.90119409,117250.0,117240.0,1.42708124]
[1758224271604,1.32502193,117250.0,117240.0,1.42708124]
[1758224272308,1.32502193,117250.0,117240.0,1.0032534]
[1758224272500,0.90119409,117250.0,117240.0,1.0032534]
[1758224272702,1.32502193,117250.0,117240.0,1.42708124]
[1758224273306,0.90119409,117250.0,117240.0,1.42708124]
[1758224273508,1.32502193,117250.0,117240.0,1.42708124]
[1758224275002,1.32502193,117250.0,117240.0,1.0032534]
[1758224275203,1.32502193,117250.0,117240.0,1.42708124]
[1758224275404,0.90119409,117250.0,117240.0,1.42708124]
[1758224275611,1.32502193,117250.0,117240.0,1.42708124]
[1758224276512,0.81594799,117250.0,117240.0,1.42708124]
[1758224276712,1.23977583,117250.0,117240.0,1.0032534]
[1758224277011,1.23977583,117250.0,117240.0,1.42708124]
[1758224277910,0.02206799,117250.0,117240.0,1.85090908]
[1758224278213,0.002,117250.0,117240.0,1.85090908]
[1758224278412,0.79436,117250.0,117240.0,1.85090908]
[1758224280316,0.002,117250.0,117240.0,2.27473692]
[1758224280620,0.79416,117250.0,117240.0,1.85090908]
[1758224280910,0.79416,117250.0,117240.0,1.89566908]
[1758224281915,0.79416,117250.0,117240.0,1.0480134]
[1758224282116,0.79416,117250.0,117240.0,1.89566908]
[1758224285119,0.7932,117250.0,117240.0,1.89566908]
[1758224288823,0.002,117250.0,117240.0,2.31949692]
[1758224289017,1.79528,117270.0,117260.0,0.1300005]
[1758224289219,2.5858,117270.0,117260.0,2.04765618]
[1758224289425,2.5858,117270.0,117260.0,2.47148402]
[1758224289614,1.79528,117270.0,117260.0,2.47148402]
[1758224289815,2.51447865,117270.0,117260.0,2.72148402]
[1758224290919,2.51547865,117270.0,117260.0,2.72248402]
[1758224292120,1.72375865,117270.0,117260.0,2.47248402]
[1758224292326,2.51543865,117270.0,117260.0,2.72248402]